Workbook

Sheet Sheet1
A1: 社会信用代码（纳税人识别号） | B1: 纳税人名称 | C1: 生产经营地址 | D1: 税款所属期起 | E1: 税款所属期止 | F1: 上年在职职工人数 | G1: 应安排残疾人就业比例 | H1: 应安排残疾人就业人数 | I1: 实际安排残疾人就业人数 | J1: 未安排残疾人就业人数
A2: 91445321MA4UQH0G0G | B2: 新兴县先丰不锈钢制品有限公司新成分厂 | C2: 新兴县新成工业园二环西路西侧 | D2: 2021-01-01 | E2: 2021-12-31 | F2: 2186.0 | G2: 0.015 | H2: =F2*G2 -> 32.79 | I2: 33.5833 | J2: =H2-I2 -> -0.7933
A3: 914453216614516500 | B3: 新兴县荣华纸品有限公司 | C3: 新兴县新城镇新成工业园内B1-05-07地块 | D3: 2021-01-01 | E3: 2021-12-31 | F3: 64.0 | G3: 0.015 | H3: =F3*G3 -> 0.96 | I3: 30.0833 | J3: =H3-I3 -> -29.1233
A4: 9144532157640143XB | B4: 广东新合铝业新兴有限公司 | C4: 新兴县新城镇新成工业园新成二路3号 | D4: 2021-01-01 | E4: 2021-12-31 | F4: 1948.0 | G4: 0.015 | H4: 29.22 | I4: 27.0833 | J4: 2.1367
A5: 914453007078149646 | B5: 广东万事泰集团有限公司 | C5: 新兴县城大南路南段48-50号 | D5: 2021-01-01 | E5: 2021-12-31 | F5: 1518.0 | G5: 0.015 | H5: 22.77 | I5: 24.0833 | J5: -1.3133
A6: 914453217192284876 | B6: 广东通力定造股份有限公司 | C6: 新兴县天堂镇新营 | D6: 2021-01-01 | E6: 2021-12-31 | F6: 674.0 | G6: 0.015 | H6: 10.11 | I6: 12.0 | J6: -1.89
A7: 914453212809609613 | B7: 广东三A不锈钢制品集团有限公司 | C7: 新兴县新城镇兴业路3号 | D7: 2021-01-01 | E7: 2021-12-31 | F7: 745.0 | G7: 0.015 | H7: 11.175 | I7: 11.8333 | J7: -0.6583
A8: 914453007081956400 | B8: 广东欧亚家居有限公司 | C8: 新兴县新城镇顺德大道18号 | D8: 2021-01-01 | E8: 2021-12-31 | F8: 1179.0 | G8: 0.015 | H8: 17.685 | I8: 9.3333 | J8: 8.3517
A9: 914453217838777051 | B9: 广东翔顺建设集团有限公司 | C9: 新兴县新城镇东堤南路688号翔顺集团办公楼五楼（办公住所） | D9: 2021-01-01 | E9: 2021-12-31 | F9: 439.0 | G9: 0.015 | H9: 6.585 | I9: 9.0 | J9: -2.415
A10: 91445321668240936Q | B10: 广东翔顺酒店管理有限公司 | C10: 新兴县新城镇东堤南路688号翔顺集团办公楼四楼（办公住所） | D10: 2021-01-01 | E10: 2021-12-31 | F10: 467.0 | G10: 0.015 | H10: 7.005 | I10: 9.0 | J10: -1.995
A11: 12445321456507934X | B11: 新兴县人民医院 | C11: 新兴县新城镇南外新街2号 | D11: 2021-01-01 | E11: 2021-12-31 | F11: 659.0 | G11: 0.015 | H11: 9.885 | I11: 7.5 | J11: 2.385
A12: 91445300555601045Q | B12: 新兴县先丰不锈钢制品有限公司东成分厂 | C12: 新兴县东成镇东瑶十里村多坪工业区 | D12: 2021-01-01 | E12: 2021-12-31 | F12: 709.0 | G12: 0.015 | H12: 10.635 | I12: 7.1667 | J12: 3.4683
A13: 9144530019582798X5 | B13: 广东省宝鼎不锈钢制品有限公司 | C13: 广东省云浮市新兴县洞口工业开发区 | D13: 2021-01-01 | E13: 2021-12-31 | F13: 362.0 | G13: 0.015 | H13: 5.43 | I13: 7.0 | J13: =H13-I13 -> -1.57
A14: 91445321398062251G | B14: 新兴县荣澳电子有限公司 | C14: 新兴县新城镇新城工业园B2-02之一（二期厂房）一楼 | D14: 2021-01-01 | E14: 2021-12-31 | F14: 322.0 | G14: 0.015 | H14: 4.83 | I14: 6.75 | J14: -1.92
A15: 914453007078130486 | B15: 新兴县百利丰不锈钢制品有限公司 | C15: 广东省新兴县新城镇凤翔里村沙地洞 | D15: 2021-01-01 | E15: 2021-12-31 | F15: 396.0 | G15: 0.015 | H15: 5.94 | I15: 6.5 | J15: -0.56
A16: 91445300570127839L | B16: 新兴县伟辉塑胶制品有限公司 | C16: 新兴县新城镇新城工业园B2-02之一（二期厂房）二楼至五楼 | D16: 2021-01-01 | E16: 2021-12-31 | F16: 298.0 | G16: 0.015 | H16: 4.47 | I16: 6.5 | J16: -2.03
A17: 114453210071777063 | B17: 新兴县六祖镇人民政府 | C17: 新兴县六祖镇集成圩 | D17: 2021-01-01 | E17: 2021-12-31 | F17: 189.0 | G17: 0.015 | H17: 2.835 | I17: 6.0 | J17: -3.165
A18: 91445321749159814E | B18: 新兴县广华食品有限公司 | C18: 新兴县六祖镇船岗舍丰村中第二经济社 | D18: 2021-01-01 | E18: 2021-12-31 | F18: 318.0 | G18: 0.015 | H18: 4.77 | I18: 6.0 | J18: -1.23
A19: 91445321MA5290BM7G | B19: 广东猎人谷精铸科技股份有限公司 | C19: 新兴县车岗镇圩镇东部X431东侧 | D19: 2021-01-01 | E19: 2021-12-31 | F19: 399.0 | G19: 0.015 | H19: 5.985 | I19: 6.0 | J19: -0.015
A20: 12445321MB2D95615E | B20: 新兴县供水管理中心 | C20: 广东省云浮市新兴县新城镇广兴大道中5号 | D20: 2021-01-01 | E20: 2021-12-31 | F20: 165.0 | G20: 0.015 | H20: 2.475 | I20: 6.0 | J20: -3.525
A21: 9144530078647504X4 | B21: 新兴县国联餐具制品厂有限公司 | C21: 新兴县六祖镇旧榔开发区 | D21: 2021-01-01 | E21: 2021-12-31 | F21: 166.0 | G21: 0.015 | H21: 2.49 | I21: 5.75 | J21: -3.26
A22: 914453217287595381 | B22: 广东翔顺物业服务有限公司 | C22: 新兴县新城镇东堤南路688号翔顺集团办公楼 | D22: 2021-01-01 | E22: 2021-12-31 | F22: 332.0 | G22: 0.015 | H22: 4.98 | I22: 5.75 | J22: -0.77
A23: 9144532109019731X3 | B23: 广东祥利科技有限公司 | C23: 新兴县新城镇新成工业园新成二路9号 | D23: 2021-01-01 | E23: 2021-12-31 | F23: 480.0 | G23: 0.015 | H23: 7.2 | I23: 5.6667 | J23: 1.5333
A24: 91445321MA51H7E24J | B24: 广东乐润基食品有限公司 | C24: 新兴县新城镇黄岗开发区（坡边罗党洞） | D24: 2021-01-01 | E24: 2021-12-31 | F24: 367.0 | G24: 0.015 | H24: 5.505 | I24: 5.6667 | J24: -0.1617
A25: 91445321663374994G | B25: 广东翔顺餐厨具有限公司 | C25: 新兴县新成工业园二环西路西侧 | D25: 2021-01-01 | E25: 2021-12-31 | F25: 415.0 | G25: 0.015 | H25: 6.225 | I25: 5.5833 | J25: 0.6417
A26: 91445321677068592U | B26: 新兴县邻居超级商场有限公司 | C26: 新兴县新城镇沿江中路48号内（工场）一层A4区 | D26: 2021-01-01 | E26: 2021-12-31 | F26: 363.0 | G26: 0.015 | H26: 5.445 | I26: 5.3333 | J26: 0.1117
A27: 91445321594027074K | B27: 侨银城市管理股份有限公司新兴分公司 | C27: 新兴县新城镇文华路2号商铺（祥利花园）第2层202室 | D27: 2021-01-01 | E27: 2021-12-31 | F27: 160.67 | G27: 0.015 | H27: 2.41005 | I27: 5.1667 | J27: -2.75665
A28: 91445300751055192C | B28: 新兴县伟邦金属制品有限公司 | C28: 新兴县新城镇二龙岗 | D28: 2021-01-01 | E28: 2021-12-31 | F28: 162.0 | G28: 0.015 | H28: 2.43 | I28: 5.0 | J28: -2.57
A29: 91445300764911154E | B29: 广东翔顺金水台温泉小镇有限公司 | C29: 新兴县水台镇圩镇 | D29: 2021-01-01 | E29: 2021-12-31 | F29: 172.0 | G29: 0.015 | H29: 2.58 | I29: 5.0 | J29: -2.42
A30: 914453001958225485 | B30: 广东新兴农村商业银行股份有限公司 | C30: 新兴县新城镇新洲大道南8号 | D30: 2021-01-01 | E30: 2021-12-31 | F30: 466.167 | G30: 0.015 | H30: 6.992505 | I30: 5.0 | J30: 1.992505
A31: 12445321456508224C | B31: 新兴县中医院 | C31: 新兴县新城镇环城西路21号 | D31: 2021-01-01 | E31: 2021-12-31 | F31: 421.0 | G31: 0.015 | H31: 6.315 | I31: 5.0 | J31: 1.315
A32: 91445321MA532WN89E | B32: 新兴小草建筑劳务分包有限公司 | C32: 新兴县新城镇枫洞社区居委会第四村民小组镇龙坊（梁初五房屋二层）（办公住所） | D32: 2021-01-01 | E32: 2021-12-31 | F32: 328.0 | G32: 0.015 | H32: 4.92 | I32: 4.8333 | J32: 0.0867
A33: 91445321665036411N | B33: 新兴宏基陶瓷有限公司 | C33: 新兴县稔村镇坝村村委会（省道S274线南侧稔村镇陶瓷定点区内） | D33: 2021-01-01 | E33: 2021-12-31 | F33: 259.0 | G33: 0.015 | H33: 3.885 | I33: 4.6667 | J33: -0.7817
A34: 91445321787968268Y | B34: 新兴县金玛利陶瓷有限公司 | C34: 广东省云浮市新兴县稔村镇布辰工业园 | D34: 2021-01-01 | E34: 2021-12-31 | F34: 360.0 | G34: 0.015 | H34: 5.4 | I34: 4.3333 | J34: 1.0667
A35: 914453215608555412 | B35: 广东万事泰电器有限公司 | C35: 新兴县新城镇新成工业园B1-11-01（3#厂房） | D35: 2021-01-01 | E35: 2021-12-31 | F35: 265.0 | G35: 0.015 | H35: 3.975 | I35: 4.3333 | J35: -0.3583
A36: 12445321073470951U | B36: 新兴县翔顺实验学校 | C36: 新兴县新城镇升平路西侧 | D36: 2021-01-01 | E36: 2021-12-31 | F36: 261.0 | G36: 0.015 | H36: 3.915 | I36: 4.3333 | J36: -0.4183
A37: 91445300MA53CNL86E | B37: 广东欧德罗厨具股份有限公司 | C37: 新兴县新城镇大南路44-46号 | D37: 2021-01-01 | E37: 2021-12-31 | F37: 307.0 | G37: 0.015 | H37: 4.605 | I37: 4.1667 | J37: 0.4383
A38: 91445300719390839F | B38: 新兴县盈泰不锈钢制品有限公司 | C38: 新兴县稔村镇宝华工业区（稔村收费站往稔村一公里处） | D38: 2021-01-01 | E38: 2021-12-31 | F38: 260.0 | G38: 0.015 | H38: 3.9 | I38: 4.1667 | J38: -0.2667
A39: 12445321725477594N | B39: 新兴县水台镇初级中学 | C39: 新兴县水台镇圩镇 | D39: 2021-01-01 | E39: 2021-12-31 | F39: 42.0 | G39: 0.015 | H39: 0.63 | I39: 4.0 | J39: -3.37
A40: 91445321783892307U | B40: 广东裕辉陶瓷有限公司 | C40: 新兴县稔村镇稔村工业园 | D40: 2021-01-01 | E40: 2021-12-31 | F40: 310.0 | G40: 0.015 | H40: 4.65 | I40: 4.0 | J40: 0.65
A41: 9144532166818193XK | B41: 新兴县致胜陶瓷有限公司 | C41: 新兴县水台镇良田开发区之三号 | D41: 2021-01-01 | E41: 2021-12-31 | F41: 262.0 | G41: 0.015 | H41: 3.93 | I41: 4.0 | J41: -0.07
A42: 91445321758335517B | B42: 新兴县翔顺龙山酒店有限公司 | C42: 新兴县六祖镇龙山渡假区龙山翔顺大酒店综合大楼 | D42: 2021-01-01 | E42: 2021-12-31 | F42: 140.0 | G42: 0.015 | H42: 2.1 | I42: 4.0 | J42: -1.9
A43: 9144530077017295XK | B43: 新兴县明萃金属制品有限公司 | C43: 新兴县新城镇广兴大道西南区三巷1-2号 | D43: 2021-01-01 | E43: 2021-12-31 | F43: 222.0 | G43: 0.015 | H43: 3.33 | I43: 4.0 | J43: -0.67
A44: 12445321728782287U | B44: 新兴县实验中学 | C44: 新兴县沿江南路121号 | D44: 2021-01-01 | E44: 2021-12-31 | F44: 164.0 | G44: 0.015 | H44: 2.46 | I44: 4.0 | J44: -1.54
A45: 12445300456507694M | B45: 广东省新兴中药学校 | C45: 新兴县新城镇果园路 | D45: 2021-01-01 | E45: 2021-12-31 | F45: 257.0 | G45: 0.015 | H45: 3.855 | I45: 4.0 | J45: -0.145
A46: 11445321007177685J | B46: 新兴县新城镇人民政府 | C46: 广东省云浮市新兴县新城镇环城北路１１号 | D46: 2021-01-01 | E46: 2021-12-31 | F46: 179.0 | G46: 0.015 | H46: 2.685 | I46: 4.0 | J46: -1.315
A47: 12445321456508056A | B47: 新兴县天堂镇中心小学 | C47: 新兴县天堂镇 | D47: 2021-01-01 | E47: 2021-12-31 | F47: 56.0 | G47: 0.015 | H47: 0.84 | I47: 4.0 | J47: -3.16
A48: 12445321456508507L | B48: 新兴县田家炳中学 | C48: 新兴县天堂镇 | D48: 2021-01-01 | E48: 2021-12-31 | F48: 174.0 | G48: 0.015 | H48: 2.61 | I48: 4.0 | J48: -1.39
A49: 91445300665039532R | B49: 广东德纳斯金属制品有限公司 | C49: 新兴县新城镇新成工业园B2-02之二 | D49: 2021-01-01 | E49: 2021-12-31 | F49: 661.0 | G49: 0.015 | H49: 9.915 | I49: 3.9167 | J49: 5.9983
A50: 91445321MA518LNW69 | B50: 云浮筠城旭日实业投资有限公司新兴喜来登酒店 | C50: 新兴县新城镇城北新区 | D50: 2021-01-01 | E50: 2021-12-31 | F50: 173.0 | G50: 0.015 | H50: 2.595 | I50: 3.9167 | J50: -1.3217
A51: 12445321782018298A | B51: 新兴县惠能中学 | C51: 广东省新兴县县城东郊教育科技园 | D51: 2021-01-01 | E51: 2021-12-31 | F51: 313.0 | G51: 0.015 | H51: 4.695 | I51: 3.75 | J51: 0.945
A52: 12445321725064968Y | B52: 新兴县河头镇初级中学 | C52: 新兴县河头圩镇 | D52: 2021-01-01 | E52: 2021-12-31 | F52: 34.0 | G52: 0.015 | H52: 0.51 | I52: 3.4286 | J52: -2.9186
A53: 91445321559191944P | B53: 新兴县同鑫五金塑胶有限公司 | C53: 新兴县新城镇新成工业园内B1-07、08地块 | D53: 2021-01-01 | E53: 2021-12-31 | F53: 91.0 | G53: 0.015 | H53: 1.365 | I53: 3.3333 | J53: -1.9683
A54: 91445321MA4W6E2E1E | B54: 丰隆（新兴）制冷设备有限公司 | C54: 新兴县新城镇新成工业园新成二路7号 | D54: 2021-01-01 | E54: 2021-12-31 | F54: 208.0 | G54: 0.015 | H54: 3.12 | I54: 3.1667 | J54: -0.0467
A55: 91445321779979813M | B55: 新兴县新德润制衣有限公司 | C55: 新兴县东成镇东瑶广兴大道 | D55: 2021-01-01 | E55: 2021-12-31 | F55: 213.0 | G55: 0.015 | H55: 3.195 | I55: 3.0833 | J55: 0.1117
A56: 91445321668181921U | B56: 新兴县东骏陶瓷有限公司 | C56: 新兴县水台镇良田开发区之四号 | D56: 2021-01-01 | E56: 2021-12-31 | F56: 165.0 | G56: 0.015 | H56: 2.475 | I56: 3.0 | J56: -0.525
A57: 11445321007177730K | B57: 新兴县水台镇人民政府 | C57: 广东省云浮市新兴县水台镇水台圩 | D57: 2021-01-01 | E57: 2021-12-31 | F57: 73.92 | G57: 0.015 | H57: 1.1088 | I57: 3.0 | J57: -1.8912
A58: 91445321562600817Y | B58: 新兴县凌丰玻璃金属制品有限公司 | C58: 新兴县新城镇黄岗工业开发区18号（抛光三车间） | D58: 2021-01-01 | E58: 2021-12-31 | F58: 186.0 | G58: 0.015 | H58: 2.79 | I58: 3.0 | J58: -0.21
A59: 91445321324910086J | B59: 广东凌丰家居用品股份有限公司 | C59: 新兴县新城镇广兴大道东凌丰工业园（技研中心）一楼至三楼 | D59: 2021-01-01 | E59: 2021-12-31 | F59: 189.0 | G59: 0.015 | H59: 2.835 | I59: 3.0 | J59: -0.165
A60: 914453210537691125 | B60: 广东建兴混凝土有限公司 | C60: 新兴县广兴大道西南面新成工业园B1-01 | D60: 2021-01-01 | E60: 2021-12-31 | F60: 73.0 | G60: 0.015 | H60: 1.095 | I60: 3.0 | J60: -1.905
A61: 91445321MA51BCUW2N | B61: 昊鼎金属制品（新兴）有限公司 | C61: 新兴县新城镇凤凰工业开发区狮子岗（凤凰村民委员会房屋） | D61: 2021-01-01 | E61: 2021-12-31 | F61: 105.0 | G61: 0.015 | H61: 1.575 | I61: 3.0 | J61: -1.425
A62: 91445321MAA4HK5F0X | B62: 广州市隧成建业物业发展有限公司新兴县分公司 | C62: 新兴县新城镇沙亭瓦背洞（苏月婵房屋） | D62: 2021-01-01 | E62: 2021-12-31 | F62: 251.0 | G62: 0.015 | H62: 3.765 | I62: 3.0 | J62: 0.765
A63: 1244532145650870X4 | B63: 新兴县蚕岗中学 | C63: 新兴县太平镇太平圩 | D63: 2021-01-01 | E63: 2021-12-31 | F63: 127.0 | G63: 0.015 | H63: 1.905 | I63: 3.0 | J63: -1.095
A64: 91445321MA51A6LL3N | B64: 新兴县艺晋制衣有限公司 | C64: 新兴县新城镇船厂村礼堂右边船厂村民小组房屋 | D64: 2021-01-01 | E64: 2021-12-31 | F64: 81.0 | G64: 0.015 | H64: 1.215 | I64: 3.0 | J64: -1.785
A65: 91445321MA4WABB59A | B65: 新兴县恒华皮具有限公司 | C65: 新兴县新城镇二环西路东侧B3地块（雨洞村委会新华村民小组房屋之一） | D65: 2021-01-01 | E65: 2021-12-31 | F65: 109.0 | G65: 0.015 | H65: 1.635 | I65: 3.0 | J65: -1.365
A66: 12445321456508523A | B66: 新兴县天堂中心卫生院 | C66: 新兴县天堂镇建设北路 | D66: 2021-01-01 | E66: 2021-12-31 | F66: 225.0 | G66: 0.015 | H66: 3.375 | I66: 3.0 | J66: 0.375
A67: 12445321456508603X | B67: 新兴县实验小学 | C67: 新兴县城竹围洞建设二路 | D67: 2021-01-01 | E67: 2021-12-31 | F67: 203.0 | G67: 0.015 | H67: =F67*G67 -> 3.045 | I67: 2.9167 | J67: 0.1283
A68: 91445321579694282L | B68: 广东嘉事泰金属制品有限公司 | C68: 新兴县新城镇新成工业园B1-11-01 | D68: 2021-01-01 | E68: 2021-12-31 | F68: 136.0 | G68: 0.015 | H68: 2.04 | I68: 2.8333 | J68: -0.7933
A69: 91445321669824052E | B69: 广东金益利陶瓷有限公司 | C69: 新兴县稔村镇布辰村委S113线东侧工业区 | D69: 2021-01-01 | E69: 2021-12-31 | F69: 340.0 | G69: 0.015 | H69: 5.1 | I69: 2.75 | J69: 2.35
A70: 91445321MA4WB80EX5 | B70: 云浮市悦天下酒店有限公司 | C70: 新兴县水台镇水台国有林场（云浮市悦和居投资开发有限公司房屋）（办公住所） | D70: 2021-01-01 | E70: 2021-12-31 | F70: 179.0 | G70: 0.015 | H70: 2.685 | I70: 2.5833 | J70: 0.1017
A71: 91445321MA4WL9PD8J | B71: 广东天利酒店管理有限公司新兴分公司 | C71: 新兴县六祖镇龙山旅游度假区 | D71: 2021-01-01 | E71: 2021-12-31 | F71: 507.0 | G71: 0.015 | H71: 7.605 | I71: 2.5 | J71: 5.105
A72: 91445321673114125D | B72: 新兴县祥利建筑工程有限公司 | C72: 新兴县新城镇新成工业园新成二路9号（综合楼）C316之2室 | D72: 2021-01-01 | E72: 2021-12-31 | F72: 238.0 | G72: 0.015 | H72: 3.57 | I72: 2.3333 | J72: 1.2367
A73: 914453211958233644 | B73: 广东省新兴县食品企业集团有限公司 | C73: 新兴县新城镇大南路122号 | D73: 2021-01-01 | E73: 2021-12-31 | F73: 155.0 | G73: 0.015 | H73: 2.325 | I73: 2.3333 | J73: -0.0083
A74: 91445300617859472E | B74: 新兴县新港城不锈钢制品有限公司 | C74: 广东省新兴县六祖大道A1-2号 | D74: 2021-01-01 | E74: 2021-12-31 | F74: 196.0 | G74: 0.015 | H74: 2.94 | I74: 2.25 | J74: 0.69
A75: 914453216664648052 | B75: 新兴建兴陶瓷有限公司 | C75: 新兴县稔村镇布夏工业区 | D75: 2021-01-01 | E75: 2021-12-31 | F75: 241.0 | G75: 0.015 | H75: 3.615 | I75: 2.0 | J75: 1.615
A76: 11445321007177722Q | B76: 新兴县东成镇人民政府 | C76: 广东省云浮市新兴县东成镇东成圩 | D76: 2021-01-01 | E76: 2021-12-31 | F76: 96.0 | G76: 0.015 | H76: 1.44 | I76: 2.0 | J76: -0.56
A77: 12445321456508339J | B77: 新兴县稔村中心卫生院(新兴县第二人民医院) | C77: 新兴县稔村圩镇 | D77: 2021-01-01 | E77: 2021-12-31 | F77: 178.0 | G77: 0.015 | H77: 2.67 | I77: 2.0 | J77: =H77-I77 -> 0.67
A78: 9144532107665035XK | B78: 云浮荣熙酒店有限公司 | C78: 新兴县六祖镇正见路28号之A1-08 | D78: 2021-01-01 | E78: 2021-12-31 | F78: 67.0 | G78: 0.015 | H78: 1.005 | I78: 2.0 | J78: -0.995
A79: 9144532157969045XK | B79: 广东天露山旅游度假区股份有限公司 | C79: 新兴县里洞镇洛洞村委洛洞旧村1号 | D79: 2021-01-01 | E79: 2021-12-31 | F79: 216.0 | G79: 0.015 | H79: 3.24 | I79: 2.0 | J79: 1.24
A80: 91445321MA51LEXA1G | B80: 新兴县鸿业五金制品有限公司 | C80: 新兴县六祖镇东江开发区（厂房）（陈少芳房屋） | D80: 2021-01-01 | E80: 2021-12-31 | F80: 27.0 | G80: 0.015 | H80: 0.405 | I80: 2.0 | J80: -1.595
A81: 9144532158635012X8 | B81: 新兴县稔村温氏家禽有限公司 | C81: 新兴县稔村镇白土开发区（温氏销售部）三楼 | D81: 2021-01-01 | E81: 2021-12-31 | F81: 290.0 | G81: 0.015 | H81: 4.35 | I81: 2.0 | J81: 2.35
A82: 91445321586350074A | B82: 新兴县车岗温氏家禽有限公司 | C82: 新兴县车岗镇工业开发区（办公楼） | D82: 2021-01-01 | E82: 2021-12-31 | F82: 214.0 | G82: 0.015 | H82: 3.21 | I82: 2.0 | J82: 1.21
A83: 91445321749967969N | B83: 广东华农温氏畜牧股份有限公司新兴分公司 | C83: 新兴县新城镇新成工业园内B4-04-01地块生产主塔 | D83: 2021-01-01 | E83: 2021-12-31 | F83: 306.0 | G83: 0.015 | H83: 4.59 | I83: 2.0 | J83: 2.59
A84: 91445300MA55WG9M63 | B84: 幻月电子（云浮）有限公司 | C84: 新兴县新城镇新成工业园B2-02之一地块A幢厂房 | D84: 2021-01-01 | E84: 2021-12-31 | F84: 186.0 | G84: 0.015 | H84: 2.79 | I84: 2.0 | J84: 0.79
A85: 914453217977338330 | B85: 广东翔顺象窝禅茶有限公司 | C85: 新兴县太平镇象窝茶场 | D85: 2021-01-01 | E85: 2021-12-31 | F85: 35.0 | G85: 0.015 | H85: 0.525 | I85: 2.0 | J85: -1.475
A86: 91445300797703554F | B86: 新兴县永昌机械有限公司 | C86: 新兴新城镇黄岗村委会元岗山 | D86: 2021-01-01 | E86: 2021-12-31 | F86: 156.0 | G86: 0.015 | H86: 2.34 | I86: 2.0 | J86: 0.34
A87: 91445321MA4ULJT022 | B87: 新兴县精准电子科技有限公司 | C87: 新兴县新城镇新城工业园B2-02之一（二期厂房）二楼 | D87: 2021-01-01 | E87: 2021-12-31 | F87: 51.0 | G87: 0.015 | H87: 0.765 | I87: 2.0 | J87: -1.235
A88: 91445321692443063B | B88: 新兴县厚德五金塑料制品有限公司 | C88: 新兴县新城镇新成工业园内B1-05-01地块 | D88: 2021-01-01 | E88: 2021-12-31 | F88: 55.0 | G88: 0.015 | H88: 0.825 | I88: 2.0 | J88: -1.175
A89: 91445300663341228K | B89: 新兴县嘉裕五金制品有限公司 | C89: 新兴县新城镇凤凰大岗坪（工业开发区） | D89: 2021-01-01 | E89: 2021-12-31 | F89: 102.0 | G89: 0.015 | H89: 1.53 | I89: 2.0 | J89: -0.47
A90: 91445321195822177U | B90: 翔顺控股集团有限公司 | C90: 新兴县新城镇东堤南路688号翔顺集团办公楼 | D90: 2021-01-01 | E90: 2021-12-31 | F90: 119.0 | G90: 0.015 | H90: 1.785 | I90: 2.0 | J90: -0.215
A91: 91445300077861247M | B91: 新兴县恒骏达不锈钢有限公司 | C91: 新兴县新城镇新成工业园B5-08-01 | D91: 2021-01-01 | E91: 2021-12-31 | F91: 142.0 | G91: 0.015 | H91: 2.13 | I91: 2.0 | J91: 0.13
A92: 91445300663358687P | B92: 恒星高新科技（新兴）有限公司 | C92: 新兴县新成工业园（地块编号：B1-07、B1-08） | D92: 2021-01-01 | E92: 2021-12-31 | F92: 125.0 | G92: 0.015 | H92: 1.875 | I92: 2.0 | J92: -0.125
A93: 91445321MA4W32AE34 | B93: 新兴县智创人力资源服务有限公司 | C93: 新兴县新城镇翔顺花园新雅居六幢首层38号商铺（办公住所） | D93: 2021-01-01 | E93: 2021-12-31 | F93: 352.0 | G93: 0.015 | H93: 5.28 | I93: 2.0 | J93: 3.28
A94: 91445321MA53YJPA7G | B94: 新兴县嘉轩制衣有限公司 | C94: 新兴县新城镇东圩路9号 | D94: 2021-01-01 | E94: 2021-12-31 | F94: 45.0 | G94: 0.015 | H94: 0.675 | I94: 2.0 | J94: -1.325
A95: 11445321007177191T | B95: 新兴县民政局 | C95: 广东省云浮市新兴县城黄塘路１０号 | D95: 2021-01-01 | E95: 2021-12-31 | F95: 53.0 | G95: 0.015 | H95: 0.795 | I95: 2.0 | J95: -1.205
A96: 12445321456507897P | B96: 新兴县第一中学 | C96: 新兴县新城镇育才南路一号 | D96: 2021-01-01 | E96: 2021-12-31 | F96: 323.0 | G96: 0.015 | H96: 4.845 | I96: 2.0 | J96: 2.845
A97: 12445321456507432B | B97: 新兴县广播电视台 | C97: 新兴县新城镇南街209号 | D97: 2021-01-01 | E97: 2021-12-31 | F97: 86.0 | G97: 0.015 | H97: 1.29 | I97: 2.0 | J97: -0.71
A98: 52445321566678101D | B98: 新兴县启智康复中心 | C98: 新兴县新城镇广兴大道西南区二巷20号 | D98: 2021-01-01 | E98: 2021-12-31 | F98: 16.0 | G98: 0.015 | H98: 0.24 | I98: 2.0 | J98: -1.76
A99: 12445300456508435E | B99: 新兴县公路事务中心 | C99: 新兴县新城镇新洲大道南19号 | D99: 2021-01-01 | E99: 2021-12-31 | F99: 99.0 | G99: 0.015 | H99: 1.485 | I99: 2.0 | J99: -0.515
A100: 91445321MA4WH04283 | B100: 新兴县童昇五金制品有限公司 | C100: 新兴县新城镇黄岗担杆山（新兴县永利达塑料制品有限公司房屋） | D100: 2021-01-01 | E100: 2021-12-31 | F100: 40.0 | G100: 0.015 | H100: 0.6 | I100: 2.0 | J100: -1.4
A101: 91445321719228807L | B101: 新兴县嘉兴实业有限公司 | C101: 新兴县新城镇天皇洞一号 | D101: 2021-01-01 | E101: 2021-12-31 | F101: 7.0 | G101: 0.015 | H101: 0.105 | I101: 2.0 | J101: -1.895
A102: 91445321789429866J | B102: 新兴县新和裕五金制品有限公司 | C102: 新兴县太平镇太平圩中黄路口市场 | D102: 2021-01-01 | E102: 2021-12-31 | F102: 70.0 | G102: 0.015 | H102: 1.05 | I102: 2.0 | J102: -0.95
A103: 91445321MA529B1Y1X | B103: 肇庆市昌大昌超级购物广场有限公司新兴店 | C103: 新兴县新城镇沿江北路66号壹层JC-1F-077贰层JC-2F-017叁层JC-3F-018 | D103: 2021-01-01 | E103: 2021-12-31 | F103: 113.0 | G103: 0.015 | H103: 1.695 | I103: 2.0 | J103: -0.305
A104: 124453215517453830 | B104: 新兴县实验小学附属幼儿园 | C104: 广东省云浮市新兴县新城镇大南路东侧 | D104: 2021-01-01 | E104: 2021-12-31 | F104: 104.0 | G104: 0.015 | H104: 1.56 | I104: 2.0 | J104: -0.44
A105: 1144532100717779XK | B105: 新兴县簕竹镇人民政府 | C105: 广东省云浮市新兴县簕竹镇簕竹圩 | D105: 2021-01-01 | E105: 2021-12-31 | F105: 88.0 | G105: 0.015 | H105: 1.32 | I105: 2.0 | J105: -0.68
A106: 12445321456508793W | B106: 新兴县簕竹镇初级中学 | C106: 新兴县簕竹镇簕竹圩 | D106: 2021-01-01 | E106: 2021-12-31 | F106: 37.0 | G106: 0.015 | H106: 0.555 | I106: 2.0 | J106: -1.445
A107: 914453000844727841 | B107: 广东金骏裕金属制品有限公司 | C107: 云浮市新兴县新城镇新成工业园XC07-03 | D107: 2021-01-01 | E107: 2021-12-31 | F107: 116.0 | G107: 0.015 | H107: 1.74 | I107: 1.9167 | J107: -0.1767
A108: 91445321MA54CXX05Q | B108: 新兴县顺伟食品有限公司 | C108: 新兴县新城镇东堤南路以东（黄明贤房屋首层）（办公住所） | D108: 2021-01-01 | E108: 2021-12-31 | F108: 298.0 | G108: 0.015 | H108: 4.47 | I108: 1.9167 | J108: 2.5533
A109: 91445321073480789Y | B109: 新兴旗胜铝业有限公司 | C109: 新兴县新城镇广兴大道西南面新成工业园Ｂ1－０1 | D109: 2021-01-01 | E109: 2021-12-31 | F109: 67.0 | G109: 0.015 | H109: 1.005 | I109: 1.8333 | J109: -0.8283
A110: 11445321007177802C | B110: 新兴县车岗镇人民政府 | C110: 广东省云浮市新兴县车岗镇车岗圩１１号 | D110: 2021-01-01 | E110: 2021-12-31 | F110: 78.0 | G110: 0.015 | H110: 1.17 | I110: 1.8333 | J110: -0.6633
A111: 91445321MA54BQA556 | B111: 新兴县隧成建业物业发展有限公司 | C111: 新兴县新城镇黄塘村民委员会第一村民小组冼河洞（黄塘村委会第一村民小组房屋）（办公住所） | D111: 2021-01-01 | E111: 2021-12-31 | F111: 267.0 | G111: 0.015 | H111: 4.005 | I111: 1.75 | J111: 2.255
A112: 124453214565084009 | B112: 新兴县妇幼保健院 | C112: 新兴县新城镇沿江南路45号 | D112: 2021-01-01 | E112: 2021-12-31 | F112: 138.08 | G112: 0.015 | H112: 2.0712 | I112: 1.75 | J112: 0.3212
A113: 11445321MB2D08833Q | B113: 新兴县市场监督管理局 | C113: 新兴县新城镇南街162号 | D113: 2021-01-01 | E113: 2021-12-31 | F113: 146.0 | G113: 0.015 | H113: 2.19 | I113: 1.75 | J113: 0.44
A114: 12445321456508515F | B114: 新兴县六祖镇卫生院 | C114: 新兴县集成圩青云路 | D114: 2021-01-01 | E114: 2021-12-31 | F114: 125.0 | G114: 0.015 | H114: 1.875 | I114: 1.6667 | J114: 0.2083
A115: 914453006178600001 | B115: 新兴县粤兴华不锈钢制品有限公司 | C115: 新兴县新城镇兴业东路23号（办公楼）第一层 | D115: 2021-01-01 | E115: 2021-12-31 | F115: 95.0 | G115: 0.015 | H115: 1.425 | I115: 1.6667 | J115: -0.2417
A116: 12445321707625338R | B116: 新兴县车岗镇中心小学 | C116: 新兴县车岗镇圩镇 | D116: 2021-01-01 | E116: 2021-12-31 | F116: 29.0 | G116: 0.015 | H116: 0.435 | I116: 1.6667 | J116: -1.2317
A117: 114453210071774743 | B117: 新兴县司法局 | C117: 新兴县新城镇广兴大道东 | D117: 2021-01-01 | E117: 2021-12-31 | F117: 32.0 | G117: 0.015 | H117: 0.48 | I117: 1.6667 | J117: -1.1867
A118: 12445321753665971T | B118: 新兴县疾病预防控制中心 | C118: 新兴县新城镇果园路 | D118: 2021-01-01 | E118: 2021-12-31 | F118: 55.0 | G118: 0.015 | H118: 0.825 | I118: 1.5 | J118: -0.675
A119: 1244532145650846X9 | B119: 新兴县慢性病防治站 | C119: 新兴县新城镇新洲大道南路 | D119: 2021-01-01 | E119: 2021-12-31 | F119: 12.0 | G119: 0.015 | H119: 0.18 | I119: 1.5 | J119: -1.32
A120: 91445321MA4UY95N1T | B120: 新兴县锐成建材有限公司 | C120: 新兴县 | D120: 2021-01-01 | E120: 2021-12-31 | F120: 41.0 | G120: 0.015 | H120: 0.615 | I120: 1.3333 | J120: -0.7183
A121: 12445321MB2C06634C | B121: 新兴县惠能小学 | C121: 新兴县新城镇惠能北路东侧 | D121: 2021-01-01 | E121: 2021-12-31 | F121: 97.0 | G121: 0.015 | H121: 1.455 | I121: 1.3333 | J121: 0.1217
A122: 12445321725079027G | B122: 新兴县东成镇中心小学 | C122: 新兴县东成圩镇 | D122: 2021-01-01 | E122: 2021-12-31 | F122: 122.0 | G122: 0.015 | H122: 1.83 | I122: 1.1667 | J122: 0.6633
A123: 124453217243726512 | B123: 新兴县里洞镇中心小学 | C123: 新兴县里洞镇 | D123: 2021-01-01 | E123: 2021-12-31 | F123: 84.0 | G123: 0.015 | H123: 1.26 | I123: 1.1667 | J123: 0.0933
A124: 91445321MA4WTTT80Y | B124: 广东凌丰五金装备科技股份有限公司 | C124: 新兴县东成镇东瑶苟南山东郊商贸城自编45-71号商铺 | D124: 2021-01-01 | E124: 2021-12-31 | F124: 91.0 | G124: 0.015 | H124: 1.365 | I124: 1.1667 | J124: 0.1983
A125: 11445321MB2D02984B | B125: 国家税务总局新兴县税务局 | C125: 广东省新兴县新洲大道南3号 | D125: 2021-01-01 | E125: 2021-12-31 | F125: 238.83 | G125: 0.015 | H125: 3.58245 | I125: 1.0833 | J125: 2.49915
A126: 914453211958216683 | B126: 广东马林食品有限公司 | C126: 新兴县凉果工业城 | D126: 2021-01-01 | E126: 2021-12-31 | F126: 89.0 | G126: 0.015 | H126: 1.335 | I126: 1.0 | J126: 0.335
A127: 52445321MJM743030A | B127: 新兴县水台镇金苹果幼儿园 | C127: 新兴县水台镇圩镇 | D127: 2021-01-01 | E127: 2021-12-31 | F127: 30.0 | G127: 0.015 | H127: 0.45 | I127: 1.0 | J127: -0.55
A128: 91445321MA4UR91BXQ | B128: 广东天禾良种苗木繁育有限公司 | C128: 新兴县水台镇良田村委会谷村（牛山、将军岗、猫山、双孖坑尾） | D128: 2021-01-01 | E128: 2021-12-31 | F128: 33.0 | G128: 0.015 | H128: 0.495 | I128: 1.0 | J128: -0.505
A129: 91445321555642293N | B129: 广东锐丰肥业有限公司 | C129: 新兴县水台镇布冷村民委员会南村村民小组大堋岗 | D129: 2021-01-01 | E129: 2021-12-31 | F129: 25.0 | G129: 0.015 | H129: 0.375 | I129: 1.0 | J129: -0.625
A130: 12445321725477586U | B130: 新兴县水台镇中心小学 | C130: 新兴县水台镇旧街41号 | D130: 2021-01-01 | E130: 2021-12-31 | F130: 4.0 | G130: 0.015 | H130: 0.06 | I130: 1.0 | J130: -0.94
A131: 114453210071778294 | B131: 新兴县稔村镇人民政府 | C131: 新兴县稔村镇 | D131: 2021-01-01 | E131: 2021-12-31 | F131: 87.0 | G131: 0.015 | H131: =F131*G131 -> 1.305 | I131: 1.0 | J131: 0.305
A132: 52445321336402038W | B132: 新兴县六祖镇启航幼儿园 | C132: 新兴县六祖镇佛光路 | D132: 2021-01-01 | E132: 2021-12-31 | F132: 42.0 | G132: 0.015 | H132: 0.63 | I132: 1.0 | J132: -0.37
A133: 91445321707625821A | B133: 新兴县悦和莊酒店有限公司 | C133: 新兴县龙山温泉旅游区 | D133: 2021-01-01 | E133: 2021-12-31 | F133: 57.0 | G133: 0.015 | H133: 0.855 | I133: 1.0 | J133: -0.145
A134: 12445321714771448C | B134: 新兴县交通运输管理总站 | C134: 新兴县新城镇沿江北路75号内 | D134: 2021-01-01 | E134: 2021-12-31 | F134: 38.0 | G134: 0.015 | H134: 0.57 | I134: 1.0 | J134: -0.43
A135: 91445321MA4WQA6N9L | B135: 新兴县温氏佳丰食品有限公司 | C135: 新兴县新城镇雨洞（广东温氏食品集团股份有限公司房屋） | D135: 2021-01-01 | E135: 2021-12-31 | F135: 109.0 | G135: 0.015 | H135: 1.635 | I135: 1.0 | J135: 0.635
A136: 9144532176930648X9 | B136: 新兴县祥利物业服务有限公司 | C136: 新兴县新城镇文华路138号祥利明珠新城1号楼一、二层3室 | D136: 2021-01-01 | E136: 2021-12-31 | F136: 137.0 | G136: 0.015 | H136: 2.055 | I136: 1.0 | J136: 1.055
A137: 91445321732162304Q | B137: 新兴县凌铭电器有限公司 | C137: 新兴县新城镇黄岗开发区（新兴县银丰不锈钢制品有限公司房屋第二层B区、第三、四层） | D137: 2021-01-01 | E137: 2021-12-31 | F137: 50.0 | G137: 0.015 | H137: 0.75 | I137: 1.0 | J137: -0.25
A138: 91445321MA52HQEX0F | B138: 广东翔顺门业有限公司 | C138: 新兴县新成工业园二环西路西侧 | D138: 2021-01-01 | E138: 2021-12-31 | F138: 66.0 | G138: 0.015 | H138: 0.99 | I138: 1.0 | J138: -0.01
A139: 91445300707813507B | B139: 温氏食品集团股份有限公司 | C139: 云浮市新兴县新城镇东堤北路9号 | D139: 2021-01-01 | E139: 2021-12-31 | F139: 223.0 | G139: 0.015 | H139: 3.345 | I139: 1.0 | J139: 2.345
A140: 914453216770617961 | B140: 新兴县凌丰五金塑料制品有限公司 | C140: 新兴县新城镇黄岗开发区（新兴县银丰不锈钢制品有限公司房屋第一层、第二层A区） | D140: 2021-01-01 | E140: 2021-12-31 | F140: 32.0 | G140: 0.015 | H140: 0.48 | I140: 1.0 | J140: -0.52
A141: 91445300553650054R | B141: 新兴中燃城市燃气发展有限公司 | C141: 广东省新兴县新城镇广兴大道西中燃公司（地号：016218287） | D141: 2021-01-01 | E141: 2021-12-31 | F141: 61.58 | G141: 0.015 | H141: 0.9237 | I141: 1.0 | J141: =H141-I141 -> -0.0763
A142: 914453213039430575 | B142: 广东永祥中药饮片厂股份有限公司 | C142: 新兴县新城镇创业中路5号 | D142: 2021-01-01 | E142: 2021-12-31 | F142: 88.0 | G142: 0.015 | H142: 1.32 | I142: 1.0 | J142: 0.32
A143: 914453000826072359 | B143: 新兴县民泰金属制品有限公司 | C143: 新兴县新城镇新成工业园XC04-03-05地块厂房 | D143: 2021-01-01 | E143: 2021-12-31 | F143: 61.0 | G143: 0.015 | H143: 0.915 | I143: 1.0 | J143: -0.085
A144: 91445321688628321Y | B144: 新兴县象窝茶场有限公司 | C144: 新兴县太平镇大村委河心洞新兴县太平镇茶产业示范基地 | D144: 2021-01-01 | E144: 2021-12-31 | F144: 50.0 | G144: 0.015 | H144: 0.75 | I144: 1.0 | J144: -0.25
A145: 91445300675205768X | B145: 广东骏威农业有限公司 | C145: 新兴县新城镇大稳村民委员会生基垌 | D145: 2021-01-01 | E145: 2021-12-31 | F145: 66.0 | G145: 0.015 | H145: 0.99 | I145: 1.0 | J145: -0.01
A146: 9144532174801850XT | B146: 广东翔顺房地产开发有限公司 | C146: 新兴县新城镇东堤南路688号翔顺集团办公楼七楼（办公住所） | D146: 2021-01-01 | E146: 2021-12-31 | F146: 80.0 | G146: 0.015 | H146: 1.2 | I146: 1.0 | J146: 0.2
A147: 91445300070271869W | B147: 新兴县嘉润制衣有限公司 | C147: 新兴县新城镇（桥亭村边）育才路桥亭社区居民委员会综合楼 | D147: 2021-01-01 | E147: 2021-12-31 | F147: 78.0 | G147: 0.015 | H147: 1.17 | I147: 1.0 | J147: 0.17
A148: 91445300726488228D | B148: 广东祥利塑料有限公司 | C148: 新兴县车岗镇开发区（地号：030000397） | D148: 2021-01-01 | E148: 2021-12-31 | F148: 48.0 | G148: 0.015 | H148: 0.72 | I148: 1.0 | J148: -0.28
A149: 91445321MA51EFD4XY | B149: 云浮市腾翔建筑有限公司 | C149: 新兴县新城镇广兴大道西149号一层（办公住所） | D149: 2021-01-01 | E149: 2021-12-31 | F149: 7.0 | G149: 0.015 | H149: 0.105 | I149: 1.0 | J149: -0.895
A150: 914453213981404599 | B150: 广东星科工业毡科技有限公司 | C150: 云浮市新兴县新城镇新成三路5号 | D150: 2021-01-01 | E150: 2021-12-31 | F150: 75.0 | G150: 0.015 | H150: 1.125 | I150: 1.0 | J150: 0.125
A151: 914453007778496287 | B151: 新豪（新兴）五金制品有限公司 | C151: 新兴县新城镇黄岗工业用地022号 | D151: 2021-01-01 | E151: 2021-12-31 | F151: 62.0 | G151: 0.015 | H151: 0.93 | I151: 1.0 | J151: -0.07
A152: 91445321744466794U | B152: 新兴县嘉能金属制品有限公司 | C152: 新兴县新城镇新成工业园内B1—05—05地块 | D152: 2021-01-01 | E152: 2021-12-31 | F152: 45.0 | G152: 0.015 | H152: 0.675 | I152: 1.0 | J152: -0.325
A153: 91445300785799202M | B153: 广东明基水产集团有限公司 | C153: 广东省新兴县新城镇站前路28号 | D153: 2021-01-01 | E153: 2021-12-31 | F153: 91.0 | G153: 0.015 | H153: 1.365 | I153: 1.0 | J153: 0.365
A154: 91445321323257126B | B154: 新兴县利龙电机环保设备有限公司 | C154: 新兴县新城镇新成工业园新成四路11号（办公楼） | D154: 2021-01-01 | E154: 2021-12-31 | F154: 65.0 | G154: 0.015 | H154: 0.975 | I154: 1.0 | J154: -0.025
A155: 9144532119582181XA | B155: 新兴县侨新塑料制品有限公司 | C155: 新兴县新城镇凤凰狮子岗 | D155: 2021-01-01 | E155: 2021-12-31 | F155: 18.0 | G155: 0.015 | H155: 0.27 | I155: 1.0 | J155: -0.73
A156: 914453217292325199 | B156: 新兴县华丽源纸品有限公司 | C156: 新兴县新城镇城东路116号 | D156: 2021-01-01 | E156: 2021-12-31 | F156: 28.0 | G156: 0.015 | H156: 0.42 | I156: 1.0 | J156: -0.58
A157: 91445321MA52PAD12C | B157: 新兴县泉兴玻璃制品有限公司 | C157: 新兴县新城镇（原洞口旧糖厂） | D157: 2021-01-01 | E157: 2021-12-31 | F157: 41.0 | G157: 0.015 | H157: 0.615 | I157: 1.0 | J157: -0.385
A158: 9144532167516410XQ | B158: 新兴县好邻居投资服务有限公司 | C158: 新兴县新城镇沿江中路48号内（工场） | D158: 2021-01-01 | E158: 2021-12-31 | F158: 20.0 | G158: 0.015 | H158: 0.3 | I158: 1.0 | J158: -0.7
A159: 12445321456507969G | B159: 新兴县房产管理事务中心 | C159: 新兴县新城镇文华路25号 | D159: 2021-01-01 | E159: 2021-12-31 | F159: 52.0 | G159: 0.015 | H159: 0.78 | I159: 1.0 | J159: -0.22
A160: 12440000MB2C98911B | B160: 广东省云浮林场 | C160: 广东省新兴县新城镇城西路一号 | D160: 2021-01-01 | E160: 2021-12-31 | F160: 48.0 | G160: 0.015 | H160: 0.72 | I160: 1.0 | J160: -0.28
A161: 91445321195824113P | B161: 新兴县恒信纸品有限公司 | C161: 新兴县新城镇黄岗工业区F幅2号 | D161: 2021-01-01 | E161: 2021-12-31 | F161: 17.0 | G161: 0.015 | H161: 0.255 | I161: 1.0 | J161: -0.745
A162: 91445321594095130G | B162: 新兴县铭驰建筑装饰有限公司 | C162: 新兴县新城镇城北新区永福西街泰基家园第1幢1层1幢21号商铺 | D162: 2021-01-01 | E162: 2021-12-31 | F162: 8.0 | G162: 0.015 | H162: 0.12 | I162: 1.0 | J162: -0.88
A163: 1244532145650790X8 | B163: 新兴县华侨中学 | C163: 新兴县新城镇大南路南外新街127号 | D163: 2021-01-01 | E163: 2021-12-31 | F163: 133.0 | G163: 0.015 | H163: 1.995 | I163: 1.0 | J163: 0.995
A164: 124453214565082402 | B164: 新兴县社会保险基金管理局 | C164: 新兴县新城镇北大垌育才南路5号 | D164: 2021-01-01 | E164: 2021-12-31 | F164: 40.0 | G164: 0.015 | H164: 0.6 | I164: 1.0 | J164: -0.4
A165: 91445321671391700Y | B165: 新兴县蔓莉首饰有限公司 | C165: 新兴县新城镇二龙岗禾场（陇塘居委会办公楼斜对面） | D165: 2021-01-01 | E165: 2021-12-31 | F165: 29.0 | G165: 0.015 | H165: 0.435 | I165: 1.0 | J165: -0.565
A166: 12445321K30578845T | B166: 新兴县机关事务管理局 | C166: 新兴县新城镇象岗路1号 | D166: 2021-01-01 | E166: 2021-12-31 | F166: 65.0 | G166: 0.015 | H166: 0.975 | I166: 1.0 | J166: -0.025
A167: 91445321729210504T | B167: 新兴县泰丰不锈钢制品有限公司 | C167: 新兴县新城镇岗背口原鱼塘 | D167: 2021-01-01 | E167: 2021-12-31 | F167: 43.0 | G167: 0.015 | H167: 0.645 | I167: 1.0 | J167: -0.355
A168: 91445321L02138356M | B168: 新兴县兴盛摩托有限公司 | C168: 新兴县新城镇新洲大道1号（邮政局综合大楼主楼首层、西翼首层） | D168: 2021-01-01 | E168: 2021-12-31 | F168: 23.0 | G168: 0.015 | H168: 0.345 | I168: 1.0 | J168: -0.655
A169: 914453216886374202 | B169: 新兴县泰安物业管理服务有限公司 | C169: 新兴县新城镇城北新区文建路东侧（新兴县新豪轩房地产开发有限公司2幢首层） | D169: 2021-01-01 | E169: 2021-12-31 | F169: 66.0 | G169: 0.015 | H169: 0.99 | I169: 1.0 | J169: -0.01
A170: 52445321G33764302X | B170: 新兴县新城镇天星幼儿园 | C170: 新兴县新城镇北大垌祥和街21-22号 | D170: 2021-01-01 | E170: 2021-12-31 | F170: 35.0 | G170: 0.015 | H170: 0.525 | I170: 1.0 | J170: -0.475
A171: 91445321MA55UYM66J | B171: 广东同信物业管理有限公司新兴分公司 | C171: 新兴县新城镇南外新街2号后勤楼五楼之一 | D171: 2021-01-01 | E171: 2021-12-31 | F171: 119.58 | G171: 0.015 | H171: 1.7937 | I171: 1.0 | J171: 0.7937
A172: 11445321MB2D08841K | B172: 新兴县自然资源局 | C172: 新兴县新城镇广兴大道中31号 | D172: 2021-01-01 | E172: 2021-12-31 | F172: 72.0 | G172: 0.015 | H172: 1.08 | I172: 1.0 | J172: 0.08
A173: 12445321007177423P | B173: 新兴县旅游事务中心 | C173: 新兴县新城镇黄塘路12号 | D173: 2021-01-01 | E173: 2021-12-31 | F173: 13.0 | G173: 0.015 | H173: 0.195 | I173: 1.0 | J173: -0.805
A174: 124453217147708590 | B174: 新兴县北峰山水库管理处 | C174: 新兴县河头镇步榔北峰山 | D174: 2021-01-01 | E174: 2021-12-31 | F174: 76.0 | G174: 0.015 | H174: 1.14 | I174: 1.0 | J174: 0.14
A175: 124453214565085315 | B175: 新兴县簕竹镇卫生院 | C175: 新兴县勒竹圩镇172号 | D175: 2021-01-01 | E175: 2021-12-31 | F175: 22.0 | G175: 0.015 | H175: 0.33 | I175: 1.0 | J175: -0.67
A176: 114453210071776425 | B176: 新兴县大江镇人民政府 | C176: 新兴县大江镇大江圩 | D176: 2021-01-01 | E176: 2021-12-31 | F176: 65.0 | G176: 0.015 | H176: 0.975 | I176: 1.0 | J176: -0.025
A177: 124453214565075712 | B177: 新兴县合河水库管理处 | C177: 新兴县大江镇 | D177: 2021-01-01 | E177: 2021-12-31 | F177: 52.0 | G177: 0.015 | H177: 0.78 | I177: 1.0 | J177: -0.22
A178: 91445321314962368T | B178: 广东奔朗新材料科技有限公司 | C178: 新兴县新城镇新成三路1号 | D178: 2021-01-01 | E178: 2021-12-31 | F178: 235.0 | G178: 0.015 | H178: 3.525 | I178: 0.8333 | J178: 2.6917
A179: 91445321752867918J | B179: 广东温氏佳润食品有限公司 | C179: 新兴县东成镇东瑶十里坩秋（办公住所） | D179: 2021-01-01 | E179: 2021-12-31 | F179: 182.0 | G179: 0.015 | H179: 2.73 | I179: 0.8333 | J179: 1.8967
A180: 91445321749992902X | B180: 新兴县祥利房地产开发有限公司 | C180: 新兴县新城镇新成工业园新成二路9号（综合楼）C316之1室 | D180: 2021-01-01 | E180: 2021-12-31 | F180: 48.0 | G180: 0.015 | H180: 0.72 | I180: 0.75 | J180: -0.03
A181: 91445321MA52P6YE1A | B181: 万事泰集团（广东）技术研究有限公司 | C181: 新兴县新城镇大南路南段50号内（办公楼）201、202 | D181: 2021-01-01 | E181: 2021-12-31 | F181: 87.0 | G181: 0.015 | H181: 1.305 | I181: 0.6667 | J181: 0.6383
A182: 91445321673123523E | B182: 广东汇远陶瓷有限公司 | C182: 新兴县水台镇良田开发区之九号 | D182: 2021-01-01 | E182: 2021-12-31 | F182: 387.0 | G182: 0.015 | H182: 5.805 | I182: 0.5833 | J182: 5.2217
A183: 91445321323257273W | B183: 新兴县永能电缆有限公司 | C183: 新兴县新城镇新成工业园新成四路9号（办公楼）首层之一 | D183: 2021-01-01 | E183: 2021-12-31 | F183: 88.0 | G183: 0.015 | H183: 1.32 | I183: 0.5833 | J183: 0.7367
A184: 12445321456508398M | B184: 新兴县新城镇卫生院 | C184: 新兴县新城镇洞口圩新街 | D184: 2021-01-01 | E184: 2021-12-31 | F184: 178.0 | G184: 0.015 | H184: 2.67 | I184: 0.5833 | J184: 2.0867
A185: 12445321456507598R | B185: 新兴县共成水库管理处 | C185: 新兴县太平镇 | D185: 2021-01-01 | E185: 2021-12-31 | F185: 25.0 | G185: 0.015 | H185: 0.375 | I185: 0.5833 | J185: -0.2083
A186: 9144532155560625X1 | B186: 广东远顺建设监理有限公司粤西分公司 | C186: 新兴县新城镇翔顺花园三区新浩居第41幢商铺1层19号 | D186: 2021-01-01 | E186: 2021-12-31 | F186: 31.0 | G186: 0.015 | H186: 0.465 | I186: 0.5833 | J186: -0.1183
A187: 124453217251026458 | B187: 新兴县大江镇中心小学 | C187: 新兴县大江圩镇 | D187: 2021-01-01 | E187: 2021-12-31 | F187: 32.0 | G187: 0.015 | H187: 0.48 | I187: 0.5833 | J187: -0.1033
A188: 91445321MA4W60RD44 | B188: 新兴县帝恒贸易有限公司 | C188: 新兴县新城镇新州大道北2号翔顺筠州花园7幢商铺10号（办公住所） | D188: 2021-01-01 | E188: 2021-12-31 | F188: 29.0 | G188: 0.015 | H188: 0.435 | I188: 0.4167 | J188: 0.0183
A189: 52445321744460915P | B189: 新兴县船岗旭日幼儿园 | C189: 新兴县船岗镇财政所大楼 | D189: 2021-01-01 | E189: 2021-12-31 | F189: 6.0 | G189: 0.015 | H189: 0.09 | I189: 0.3333 | J189: -0.2433
A190: 91445321MA518HT95K | B190: 新兴县翔丰建筑工程有限公司 | C190: 新兴县新城镇州背J2区永福街梁炳均房屋首层第一卡（办公住所） | D190: 2021-01-01 | E190: 2021-12-31 | F190: 173.0 | G190: 0.015 | H190: 2.595 | I190: 0.3333 | J190: 2.2617
A191: 914453217673372907 | B191: 广东奥柏兴新材料有限公司 | C191: 新兴县新城镇新成三路6号办公楼（办公住所） | D191: 2021-01-01 | E191: 2021-12-31 | F191: 63.0 | G191: 0.015 | H191: 0.945 | I191: 0.25 | J191: 0.695
A192: 12445321K30578802D | B192: 新兴县残疾人联合会 | C192: 广东省云浮市新兴县新城镇城东路28号 | D192: 2021-01-01 | E192: 2021-12-31 | F192: 22.0 | G192: 0.015 | H192: 0.33 | I192: 0.25 | J192: 0.08
A193: 91445321MA4UNQLH06 | B193: 新兴县精诚电气安装有限公司 | C193: 新兴县新城镇东堤中路2号百合山花园商铺B11卡（办公住所） | D193: 2021-01-01 | E193: 2021-12-31 | F193: 29.0 | G193: 0.015 | H193: 0.435 | I193: 0.25 | J193: 0.185
A194: 52445321714770867N | B194: 新兴县华侨幼儿园 | C194: 新兴县新城镇较场路86号 | D194: 2021-01-01 | E194: 2021-12-31 | F194: 50.0 | G194: 0.015 | H194: 0.75 | I194: 0.1667 | J194: 0.5833
A195: 52445321MJM743145G | B195: 新兴县爱德凤凰幼儿园 | C195: 新兴县新城镇凤凰村民委员会第二村民小组集体用地 | D195: 2021-01-01 | E195: 2021-12-31 | F195: 82.0 | G195: 0.015 | H195: =F195*G195 -> 1.23 | I195: 0.1667 | J195: 1.0633
A196: 91445321MA52CT7R84 | B196: 新兴县富兴汽车维修有限公司 | C196: 新兴县东成镇东瑶村第四村民小组豆菜窝旱地 | D196: 2021-01-01 | E196: 2021-12-31 | F196: 5.0 | G196: 0.015 | H196: 0.075 | I196: 0.0 | J196: 0.075
A197: 91445321MA4URRE36N | B197: 新兴县博祥饲料部 | C197: 新兴县东成镇圩镇（何新洁房屋第八卡） | D197: 2021-01-01 | E197: 2021-12-31 | F197: 1.0 | G197: 0.015 | H197: 0.015 | I197: 0.0 | J197: 0.015
A198: 52445321759240472L | B198: 新兴县稔村镇坝塘幼儿园 | C198: 新兴县稔村镇坝塘村 | D198: 2021-01-01 | E198: 2021-12-31 | F198: 32.0 | G198: 0.015 | H198: 0.48 | I198: 0.0 | J198: 0.48
A199: 914453216806032504 | B199: 新兴县水台镇龙华建材厂 | C199: 新兴县水台镇棠下村 | D199: 2021-01-01 | E199: 2021-12-31 | F199: 1.0 | G199: 0.015 | H199: 0.015 | I199: 0.0 | J199: 0.015
A200: 91445321324966151P | B200: 新兴县盛益皮具有限公司 | C200: 新兴县东成镇圩镇区廷标房屋首层 | D200: 2021-01-01 | E200: 2021-12-31 | F200: 1.0 | G200: 0.015 | H200: 0.015 | I200: 0.0 | J200: 0.015
... 4343 more rows
